bitfinex/quotes_BTCUSD_20230905
["timestamp","ask_amount","ask_price","bid_price","bid_amount"]
[1693879957596,1.46032008,25751.0,25750.0,0.03878784]
[1693879957786,0.68565208,25751.0,25750.0,0.03878784]
[1693879957944,0.39064527,25751.0,25750.0,0.12288784]
[1693879958348,0.39064527,25751.0,25750.0,0.47240184]
[1693879958551,0.39064527,25751.0,25750.0,0.12288784]
[1693879959652,0.66348953,25751.0,25750.0,0.12288784]
[1693879959876,0.66348953,25751.0,25750.0,0.03878784]
[1693879960080,1.44015753,25751.0,25750.0,0.03878784]
[1693879960518,2.99896397,25751.0,25750.0,0.03878784]
[1693879960720,2.99830397,25751.0,25750.0,0.03878784]
[1693879960927,2.99782397,25751.0,25748.0,0.0841]
[1693879961137,1.16335327,25750.0,25748.0,0.0841]
[1693879962078,1.94006127,25750.0,25748.0,0.0841]
[1693879962616,1.94306127,25750.0,25748.0,0.0841]
[1693879962875,0.22122321,25749.0,25748.0,0.0841]
[1693879963054,1.38459748,25749.0,25748.0,0.0841]
[1693879964077,1.39059748,25749.0,25748.0,0.12111035]
[1693879965155,1.16937427,25749.0,25748.0,0.12111035]
[1693879965369,1.16937427,25749.0,25748.0,0.03701035]
[1693879965370,2.24050836,25749.0,25748.0,0.03701035]
[1693879965565,2.96751736,25749.0,25748.0,0.03701035]
[1693879965795,2.96751736,25749.0,25745.0,0.11492083]
[1693879965995,0.38664527,25748.0,25745.0,0.11492083]
[1693879966198,1.553578,25747.0,25745.0,0.11492083]
[1693879966529,0.38664527,25746.0,25745.0,0.11492083]
[1693879966932,1.16346427,25746.0,25745.0,0.11492083]
[1693879967690,1.16546427,25746.0,25745.0,0.11492083]
[1693879968924,1.16746427,25746.0,25745.0,0.11492083]
[1693879969351,1.94428327,25746.0,25745.0,0.11492083]
[1693879970326,1.94428327,25746.0,25745.0,0.03082083]
[1693879970526,1.94428327,25746.0,25744.0,0.433684]
[1693879971533,1.94228327,25746.0,25744.0,0.433684]
[1693879971736,1.94028327,25746.0,25744.0,0.433684]
[1693879971946,2.2035718,25746.0,25744.0,0.0841]
[1693879972159,2.2055718,25746.0,25744.0,0.0841]
[1693879974574,2.2055718,25746.0,25744.0,0.11499521]
[1693879977216,2.2055718,25746.0,25744.0,0.46459021]
[1693879978235,1.4287528,25746.0,25745.0,0.0841]
[1693879979103,1.4287528,25746.0,25745.0,0.11976127]
[1693879979303,1.16546427,25746.0,25745.0,0.11976127]
[1693879979678,1.16746427,25746.0,25745.0,0.11976127]
[1693879980561,1.16546427,25746.0,25745.0,0.11976127]
[1693879980966,1.16746427,25746.0,25745.0,0.11976127]
[1693879984669,1.16746427,25746.0,25745.0,1.23899502]
[1693879985438,1.16746427,25746.0,25745.0,0.11976127]
[1693879986429,1.33296427,25746.0,25745.0,0.11976127]
[1693879987267,0.55614527,25746.0,25745.0,0.11976127]
[1693879987690,0.55614527,25746.0,25745.0,1.23900267]
[1693879995399,0.55614527,25746.0,25745.0,0.11976127]
[1693879995605,0.55614527,25746.0,25745.0,1.23900011]
[1693879997727,0.55614527,25746.0,25745.0,1.58858211]
[1693880031497,0.55614527,25746.0,25745.0,1.93816411]
[1693880050118,0.55614527,25746.0,25745.0,1.58858211]
[1693880050966,0.55614527,25746.0,25745.0,1.23900011]
[1693880054760,1.33296427,25746.0,25745.0,1.23900011]
[1693880071945,2.10978327,25746.0,25745.0,1.23900011]
[1693880075185,2.10978327,25746.0,25745.0,0.11976127]
[1693880087914,0.55614527,25746.0,25745.0,0.11976127]
[1693880088129,0.39064527,25746.0,25745.0,0.11976127]
[1693880093383,0.39064527,25746.0,25745.0,0.46934327]
[1693880099015,0.39064527,25746.0,25745.0,0.81892527]
[1693880103292,0.004,25746.0,25745.0,1.16850727]
[1693880106958,0.26149894,25746.0,25745.0,1.16850727]
[1693880107134,0.64814421,25746.0,25745.0,0.11976127]
[1693880107351,1.42496321,25746.0,25745.0,0.11976127]
[1693880107788,1.58716321,25746.0,25745.0,0.11976127]
[1693880110656,2.36398221,25746.0,25745.0,0.11976127]
[1693880110864,3.14080121,25746.0,25745.0,0.11976127]
[1693880113663,2.97860121,25746.0,25745.0,0.11976127]
[1693880114967,3.13730121,25746.0,25745.0,0.11976127]
[1693880119581,2.36048221,25746.0,25745.0,0.11976127]
[1693880151712,2.20178221,25746.0,25745.0,0.11976127]
[1693880156246,2.35718221,25746.0,25745.0,0.11976127]
[1693880158034,1.58036321,25746.0,25745.0,0.11976127]
[1693880159060,1.58036321,25746.0,25745.0,0.0841]
[1693880159462,1.58036321,25746.0,25745.0,0.11835352]
[1693880164626,0.80354421,25746.0,25745.0,0.46793552]
[1693880167203,1.04539059,25746.0,25745.0,0.03425352]
[1693880167402,4.45887305,25746.0,25745.0,0.03425352]
[1693880167625,4.56441305,25746.0,25745.0,0.03425352]
[1693880167811,0.08,25745.0,25741.0,0.0841]
[1693880168044,2.6011315,25743.0,25741.0,0.0841]
[1693880168229,0.38664527,25742.0,25741.0,0.0841]
[1693880168442,1.94052527,25742.0,25741.0,0.0841]
[1693880168822,2.09052527,25742.0,25741.0,0.0841]
[1693880169394,2.09652527,25742.0,25741.0,0.0841]
[1693880169837,1.16958527,25742.0,25741.0,0.0841]
[1693880170039,0.39264527,25742.0,25741.0,0.433736]
[1693880172074,0.39264527,25742.0,25741.0,0.783372]
[1693880173773,0.006,25742.0,25741.0,0.783372]
[1693880174122,0.006,25742.0,25741.0,0.81461055]
[1693880176177,0.006,25742.0,25741.0,0.80852759]
[1693880182974,0.006,25742.0,25741.0,0.45889159]
[1693880184399,0.006,25742.0,25741.0,0.80852759]
[1693880184656,0.006,25742.0,25741.0,0.45889159]
[1693880189433,0.006,25742.0,25741.0,0.45093079]
[1693880193724,0.006,25742.0,25741.0,0.80056679]
[1693880193899,0.006,25742.0,25741.0,0.45093079]
[1693880196401,0.006,25742.0,25741.0,0.80056679]
[1693880196896,0.006,25742.0,25741.0,0.45093079]
[1693880197319,0.006,25742.0,25741.0,0.80056679]
[1693880199355,0.006,25742.0,25741.0,1.15020279]
[1693880203862,0.006,25742.0,25741.0,1.23430279]
[1693880205080,0.006,25742.0,25741.0,1.38969379]
[1693880216527,0.006,25742.0,25741.0,1.42048163]
[1693880220771,0.1626,25745.0,25742.0,0.02]
[1693880221062,0.04921059,25747.0,25744.0,0.1682]
[1693880221187,0.04921059,25747.0,25746.0,0.0841]
[1693880221404,0.04921059,25747.0,25746.0,0.783236]
[1693880221599,0.1604,25747.0,25746.0,0.783236]
[1693880222222,0.1604,25747.0,25746.0,1.132804]
[1693880222426,0.1614,25747.0,25746.0,1.132804]
[1693880222632,0.1604,25747.0,25746.0,1.132804]
[1693880223029,0.1614,25747.0,25746.0,1.135804]
[1693880224995,0.40109053,25747.0,25746.0,0.436668]
[1693880225193,0.40109053,25747.0,25746.0,0.0871]
[1693880226902,0.7877358,25747.0,25746.0,0.0871]
[1693880227104,2.4066538,25747.0,25746.0,0.0871]
[1693880227330,2.4067738,25747.0,25746.0,0.0871]
[1693880227560,2.4065938,25747.0,25746.0,0.0871]
[1693880227765,2.3413138,25747.0,25746.0,0.0871]
[1693880230522,1.5645248,25747.0,25746.0,0.0871]
[1693880233893,0.7877358,25747.0,25746.0,0.0871]
[1693880234093,0.7877358,25747.0,25746.0,0.1089653]
[1693880235957,1.5645248,25747.0,25746.0,0.1089653]
[1693880238691,0.7877358,25747.0,25746.0,0.1089653]
[1693880243040,0.7827358,25747.0,25746.0,0.1089653]
[1693880248221,0.87573416,25747.0,25746.0,0.1089653]
[1693880259616,0.87573416,25747.0,25746.0,0.0248653]
[1693880259819,2.50965216,25747.0,25746.0,0.0248653]
[1693880260023,3.4174187,25747.0,25746.0,0.0248653]
[1693880260235,3.4131587,25747.0,25746.0,0.0248653]
[1693880260360,3.4126787,25747.0,25746.0,0.0248653]
[1693880260573,3.4115987,25747.0,25746.0,0.0248653]
[1693880260771,3.4115387,25747.0,25746.0,0.0248653]
[1693880260978,3.4114187,25747.0,25746.0,0.0248653]
[1693880261178,3.4112387,25747.0,25746.0,0.0248653]
[1693880261384,3.3455987,25747.0,25746.0,0.0248653]
[1693880261587,3.34555393,25747.0,25746.0,0.0248653]
[1693880262230,3.25260034,25747.0,25746.0,0.0248653]
[1693880262641,3.34555425,25747.0,25746.0,0.0248653]
[1693880262789,3.25260034,25747.0,25746.0,0.0248653]
[1693880268770,3.32442034,25747.0,25746.0,0.0248653]
[1693880268937,3.32352034,25747.0,25746.0,0.0248653]
[1693880269328,3.32340034,25747.0,25746.0,0.0248653]
[1693880269532,3.32238034,25747.0,25746.0,0.0248653]
[1693880269734,3.32412034,25747.0,25746.0,0.0248653]
[1693880269933,3.32280034,25747.0,25746.0,0.0248653]
[1693880270162,3.32334034,25747.0,25746.0,0.0248653]
[1693880270359,3.32262034,25747.0,25746.0,0.0248653]
[1693880270697,3.32682034,25747.0,25746.0,0.0248653]
[1693880270853,3.32766034,25747.0,25746.0,0.0248653]
[1693880271057,3.32748034,25747.0,25746.0,0.0248653]
[1693880271406,3.32676034,25747.0,25746.0,0.003]
[1693880271681,3.32730034,25747.0,25746.0,0.003]
[1693880271879,3.32646034,25747.0,25746.0,0.003]
[1693880272066,3.32634034,25747.0,25746.0,0.003]
[1693880272214,3.32592034,25747.0,25746.0,0.02214945]
[1693880272416,3.32586034,25747.0,25746.0,0.02214945]
[1693880272613,3.32562034,25747.0,25746.0,0.02214945]
[1693880272817,3.32526034,25747.0,25746.0,0.02214945]
[1693880273170,3.32544034,25747.0,25746.0,0.02214945]
[1693880273366,3.32532034,25747.0,25746.0,0.02214945]
[1693880273573,3.32064034,25747.0,25746.0,0.02214945]
[1693880273771,3.31914034,25747.0,25746.0,0.02214945]
[1693880274004,3.31902034,25747.0,25746.0,0.02214945]
[1693880274203,3.31896034,25747.0,25746.0,0.02214945]
[1693880274382,3.31848034,25747.0,25746.0,0.02214945]
[1693880274578,3.31794034,25747.0,25746.0,0.02214945]
[1693880274776,3.25260034,25747.0,25746.0,0.02214945]
[1693880278803,3.09720034,25747.0,25746.0,0.02214945]
[1693880281705,2.32041134,25747.0,25746.0,0.02214945]
[1693880283935,2.08072081,25747.0,25746.0,0.02214945]
[1693880284172,0.62007432,25747.0,25746.0,0.10624945]
[1693880284578,0.48057678,25747.0,25746.0,0.02214945]
[1693880294734,0.71940959,25747.0,25746.0,0.02214945]
[1693880294909,3.50075548,25747.0,25746.0,0.02214945]
[1693880295230,3.72926207,25747.0,25746.0,0.003]
[1693880295397,3.72992207,25747.0,25746.0,0.003]
[1693880295603,3.72944207,25747.0,25746.0,0.003]
[1693880295759,3.49697548,25747.0,25746.0,0.003]
[1693880295962,3.73058207,25747.0,25746.0,0.003]
[1693880296176,3.73028207,25747.0,25746.0,0.003]
[1693880296374,4.00943331,25747.0,25746.0,0.003]
[1693880296640,3.98429331,25747.0,25746.0,0.003]
[1693880296842,2.36266599,25747.0,25746.0,0.003]
[1693880297489,2.36266599,25747.0,25746.0,0.02215045]
[1693880299580,1.58587699,25747.0,25746.0,0.02215045]
[1693880300034,0.80908799,25747.0,25746.0,0.10625045]
[1693880300846,0.61988796,25747.0,25746.0,0.10625045]
[1693880301074,1.39667696,25747.0,25746.0,0.10625045]
[1693880301837,0.61988796,25747.0,25746.0,0.10625045]
[1693880303168,0.61988796,25747.0,25746.0,0.02215045]
[1693880304332,0.48053648,25747.0,25746.0,0.02215045]
[1693880304541,0.48053965,25747.0,25746.0,0.02215045]
[1693880305257,1.25732865,25747.0,25746.0,0.02215045]
[1693880305976,0.48053965,25747.0,25746.0,0.02215045]
[1693880306125,0.48053965,25747.0,25746.0,0.37171845]
[1693880306326,0.79510202,25747.0,25746.0,0.37171845]
[1693880306534,1.35022303,25747.0,25746.0,0.02215045]
[1693880306736,3.58929562,25747.0,25746.0,0.02215045]
[1693880307407,3.13017211,25747.0,25746.0,0.003]
[1693880307549,3.58929258,25747.0,25746.0,0.003]
[1693880307719,3.75089258,25747.0,25746.0,0.003]
[1693880308494,3.29177211,25747.0,25746.0,0.003]
[1693880309231,3.43109397,25747.0,25746.0,0.003]
[1693880311017,3.29177211,25747.0,25746.0,0.003]
[1693880311217,3.43108907,25747.0,25746.0,0.003]
[1693880311427,3.29177211,25747.0,25746.0,0.003]
[1693880312170,3.43108611,25747.0,25746.0,0.003]
[1693880313759,3.50338611,25747.0,25746.0,0.003]
[1693880313989,3.49888611,25747.0,25746.0,0.003]
[1693880314189,3.49900611,25747.0,25746.0,0.003]
[1693880314408,3.49894611,25747.0,25746.0,0.003]
[1693880314609,3.49888611,25747.0,25746.0,0.003]
[1693880314856,3.49882611,25747.0,25746.0,0.003]
[1693880314986,3.33692611,25747.0,25746.0,0.003]
[1693880315399,3.33710611,25747.0,25746.0,0.003]
[1693880315656,3.33740611,25747.0,25746.0,0.003]
[1693880315860,3.33746611,25747.0,25746.0,0.003]
[1693880316058,3.33800611,25747.0,25746.0,0.003]
[1693880316285,3.33812611,25747.0,25746.0,0.003]
[1693880316467,3.33776611,25747.0,25746.0,0.003]
[1693880316602,3.33770611,25747.0,25746.0,0.003]
[1693880316823,3.33764611,25747.0,25746.0,0.003]
[1693880317032,3.33782611,25747.0,25746.0,0.003]
[1693880317377,3.33686611,25747.0,25746.0,0.003]
[1693880317531,3.49156611,25747.0,25746.0,0.003]
[1693880317731,3.49150611,25747.0,25746.0,0.003]
[1693880318090,3.49144611,25747.0,25746.0,0.003]
[1693880318317,3.49078611,25747.0,25746.0,0.003]
[1693880318495,3.49114611,25747.0,25746.0,0.003]
[1693880318714,3.49108611,25747.0,25746.0,0.003]
[1693880318926,3.49102611,25747.0,25746.0,0.003]
[1693880319544,3.49090611,25747.0,25746.0,0.003]
[1693880319725,3.49036611,25747.0,25746.0,0.003]
[1693880319928,3.49030611,25747.0,25746.0,0.003]
[1693880320507,3.30439735,25747.0,25746.0,0.003]
[1693880320731,3.30433735,25747.0,25746.0,0.003]
[1693880320931,3.30409735,25747.0,25746.0,0.003]
[1693880321139,3.23869735,25747.0,25746.0,0.003]
[1693880321312,3.30415735,25747.0,25746.0,0.003]
[1693880321653,3.30403735,25747.0,25746.0,0.003]
[1693880321807,3.23869735,25747.0,25746.0,0.003]
[1693880332488,3.23869735,25747.0,25746.0,0.02228884]
[1693880332710,3.42448611,25747.0,25746.0,0.02228884]
[1693880333846,3.42436892,25747.0,25746.0,0.02228884]
[1693880336621,3.26936892,25747.0,25746.0,0.02228884]
[1693880338435,3.42596892,25747.0,25746.0,0.02228884]
[1693880340811,3.28668939,25747.0,25746.0,0.02228884]
[1693880340993,3.28668939,25747.0,25746.0,0.01728884]
[1693880341399,3.28668939,25747.0,25743.0,0.783318]
[1693880341555,0.61883,25746.0,25743.0,0.783318]
[1693880341778,2.172505,25746.0,25743.0,0.783318]
[1693880343021,0.22184937,25745.0,25743.0,0.804318]
[1693880343255,0.60849464,25745.0,25743.0,0.826318]
[1693880343457,0.60849464,25745.0,25743.0,0.805318]
[1693880343659,0.60849464,25745.0,25743.0,0.826318]
[1693880343863,0.60849464,25745.0,25743.0,0.804318]
[1693880344243,0.60849464,25745.0,25743.0,0.783318]
[1693880344444,0.61049464,25745.0,25743.0,0.804318]
[1693880345914,0.61249464,25745.0,25743.0,0.826318]
[1693880348713,0.61249464,25745.0,25744.0,0.01918361]
[1693880349568,0.60849464,25745.0,25744.0,0.01918361]
[1693880349737,0.61049464,25745.0,25744.0,0.03918361]
[1693880349945,0.61249464,25745.0,25744.0,0.06018361]
[1693880350952,0.70536853,25745.0,25744.0,0.06018361]
[1693880351936,0.70536853,25745.0,25744.0,0.40977961]
[1693880352865,0.004,25745.0,25744.0,1.19307161]
[1693880353837,0.004,25745.0,25744.0,1.173888]
[1693880354346,0.004,25745.0,25744.0,1.19307161]
[1693880379077,0.004,25745.0,25744.0,1.27717161]
[1693880382474,0.004,25745.0,25744.0,1.19307161]
[1693880388331,0.004,25745.0,25744.0,1.22397009]
[1693880393052,0.004,25745.0,25744.0,1.30807009]
[1693880410491,0.004,25745.0,25744.0,1.22397009]
[1693880410895,0.004,25745.0,25744.0,0.87437409]
[1693880411338,0.1638,25745.0,25744.0,0.87437409]
[1693880418093,0.1638,25745.0,25744.0,1.22397009]
[1693880427368,0.1638,25745.0,25744.0,1.30807009]
[1693880431341,0.004,25745.0,25744.0,1.30807009]
[1693880432702,0.004,25745.0,25744.0,1.29960985]
[1693880454213,0.004,25745.0,25744.0,1.70920585]
[1693880454412,0.004,25745.0,25744.0,1.45283848]
[1693880454616,0.004,25745.0,25744.0,1.59268143]
[1693880454798,0.004,25745.0,25744.0,1.94227743]
[1693880455006,0.004,25745.0,25744.0,1.80243448]
[1693880455239,0.002,25745.0,25744.0,1.78143448]
[1693880455668,0.004,25745.0,25744.0,1.80543448]
[1693880456053,0.3857,25748.0,25745.0,0.02]
[1693880456226,0.3857,25748.0,25747.0,0.0841]
[1693880456661,0.3857,25748.0,25747.0,1.132765]
[1693880458091,0.3867,25748.0,25747.0,1.132765]
[1693880458265,0.3887,25748.0,25747.0,1.132765]
[1693880458705,0.3867,25748.0,25747.0,1.132765]
[1693880459336,0.3867,25748.0,25747.0,1.14356716]
[1693880464197,0.3877,25748.0,25747.0,1.16056716]
[1693880464783,0.3857,25748.0,25747.0,1.14356716]
[1693880465006,0.3877,25748.0,25747.0,1.16056716]
[1693880466153,0.3887,25748.0,25747.0,1.17756716]
[1693880482460,0.1606,25748.0,25747.0,1.52712216]
[1693880482842,0.003,25748.0,25747.0,1.52712216]
[1693880491527,0.003,25748.0,25747.0,1.55768897]
[1693880492110,0.003,25748.0,25747.0,1.61768897]
[1693880497012,0.003,25748.0,25747.0,1.73768897]
[1693880497216,0.003,25748.0,25747.0,2.03768897]
[1693880497859,0.002,25748.0,25747.0,2.02068897]
[1693880498077,0.2315,25750.0,25749.0,0.06]
[1693880498322,0.1666,25751.0,25749.0,1.542212]
[1693880498615,0.1666,25751.0,25750.0,0.0841]
[1693880498798,0.1666,25751.0,25750.0,1.132642]
[1693880499744,0.1696,25751.0,25750.0,1.132642]
[1693880500591,0.1726,25751.0,25750.0,1.132642]
[1693880504067,0.1726,25751.0,25750.0,1.14338733]
[1693880525431,0.1696,25751.0,25750.0,1.14338733]
[1693880525653,0.1666,25751.0,25750.0,1.14338733]
[1693880525854,0.1666,25751.0,25750.0,1.14838733]
[1693880526058,0.1666,25751.0,25750.0,1.15438733]
[1693880526416,0.1666,25751.0,25750.0,1.14838733]
[1693880526618,0.3566,25751.0,25750.0,1.15438733]
[1693880529674,0.3566,25751.0,25750.0,1.18596965]
[1693880542996,0.19,25751.0,25750.0,1.18596965]
[1693880554057,0.60538061,25753.0,25750.0,1.18096965]
[1693880554253,0.60538061,25753.0,25752.0,0.0841]
[1693880554480,0.60538061,25753.0,25752.0,1.132561]
[1693880554691,0.55562754,25753.0,25752.0,1.132561]
[1693880555288,0.55862754,25753.0,25752.0,1.132561]
[1693880556924,0.74862754,25753.0,25752.0,1.132561]
[1693880557875,0.75262754,25753.0,25752.0,1.132561]
[1693880558863,0.36,25753.0,25752.0,1.132561]
[1693880559297,0.197,25753.0,25752.0,1.132561]
[1693880559714,0.194,25753.0,25752.0,1.132561]
[1693880559929,0.194,25753.0,25752.0,1.137561]
[1693880560340,0.194,25753.0,25752.0,1.221661]
[1693880560753,0.19,25753.0,25752.0,1.221661]
[1693880561260,0.19,25753.0,25752.0,1.225661]
[1693880561410,0.19,25753.0,25752.0,1.220661]
[1693880561617,0.19,25753.0,25752.0,1.216661]
[1693880561856,0.191,25753.0,25752.0,1.229661]
[1693880562059,0.191,25753.0,25752.0,1.242661]
[1693880562060,0.192,25753.0,25752.0,1.242661]
[1693880562284,0.191,25753.0,25752.0,1.229661]
[1693880562488,0.191,25753.0,25752.0,1.238661]
[1693880562918,0.192,25753.0,25752.0,1.260661]
[1693880564060,0.192,25753.0,25752.0,1.27162371]
[1693880574017,0.192,25753.0,25752.0,1.33162371]
[1693880574214,0.192,25753.0,25752.0,1.63162371]
[1693880580003,0.192,25753.0,25752.0,1.62662371]
[1693880580445,0.46433365,25753.0,25752.0,1.54752371]
[1693880585470,0.192,25753.0,25752.0,1.54752371]
[1693880602261,0.3523,25753.0,25752.0,1.54752371]
[1693880604025,0.192,25753.0,25752.0,2.01826898]
[1693880604234,0.192,25753.0,25752.0,2.25106358]
[1693880604439,0.192,25753.0,25752.0,2.15794574]
[1693880604675,0.192,25753.0,25752.0,2.32450466]
[1693880604886,0.04991756,25758.0,25752.0,2.32450466]
[1693880604887,0.04991756,25758.0,25756.0,0.04]
[1693880605102,0.04991756,25758.0,25757.0,1.481776]
[1693880605274,0.35981575,25760.0,25757.0,1.49279771]
[1693880605479,0.1528,25759.0,25758.0,0.0841]
[1693880605689,0.1528,25759.0,25758.0,1.132318]
[1693880606700,0.1528,25759.0,25758.0,1.135318]
[1693880607356,0.1528,25759.0,25758.0,1.138318]
[1693880609249,0.1528,25759.0,25758.0,1.14927797]
[1693880609448,0.1528,25759.0,25758.0,1.14627797]
[1693880609660,0.1528,25759.0,25758.0,1.14327797]
[1693880609870,0.1528,25759.0,25758.0,1.15527797]
[1693880610066,0.1528,25759.0,25758.0,1.16627797]
[1693880610417,0.1528,25759.0,25758.0,1.15427797]
[1693880610630,0.1528,25759.0,25758.0,1.16627797]
[1693880612777,0.1528,25759.0,25758.0,1.155318]
[1693880626115,0.1528,25759.0,25758.0,1.144318]
[1693880626371,0.1528,25759.0,25758.0,1.164318]
[1693880626544,0.1528,25759.0,25758.0,1.132318]
[1693880626945,0.1528,25759.0,25758.0,1.172318]
[1693880628164,0.1528,25759.0,25758.0,1.152318]
[1693880628343,0.1528,25759.0,25758.0,1.172318]
[1693880628540,0.2409,25761.0,25758.0,1.172318]
[1693880628985,0.3943,25761.0,25758.0,1.172318]
[1693880629394,0.3943,25761.0,25758.0,1.152318]
[1693880630006,0.3943,25761.0,25758.0,1.172318]
[1693880631039,0.3943,25761.0,25758.0,1.521724]
[1693880634755,0.3893,25761.0,25758.0,1.521724]
[1693880643064,0.3893,25761.0,25759.0,0.0841]
[1693880643543,0.3893,25761.0,25760.0,1.048134]
[1693880644941,0.3893,25761.0,25760.0,1.051134]
[1693880645199,0.3893,25761.0,25760.0,1.054134]
[1693880647189,0.62637122,25761.0,25760.0,1.054134]
[1693880649508,0.62637122,25761.0,25760.0,0.006]
[1693880649885,0.62637122,25761.0,25760.0,0.704756]
[1693880650527,0.62637122,25761.0,25760.0,1.054134]
[1693880653118,0.62637122,25761.0,25760.0,0.006]
[1693880653319,0.62637122,25761.0,25760.0,1.054134]
[1693880656863,0.71919105,25761.0,25760.0,1.054134]
[1693880688901,0.48329105,25761.0,25760.0,1.054134]
[1693880689094,0.24621983,25761.0,25760.0,1.138234]
[1693880692983,0.09281983,25761.0,25760.0,1.138234]
[1693880693559,0.09291666,25761.0,25760.0,1.138234]
[1693880693764,0.23229165,25762.0,25760.0,1.138234]
[1693880694401,0.09291666,25762.0,25760.0,1.138234]
[1693880694808,0.25741666,25762.0,25760.0,1.138234]
[1693880695008,0.25741666,25762.0,25760.0,1.135234]
[1693880695347,0.25741666,25762.0,25760.0,1.138234]
[1693880695557,0.25741666,25762.0,25760.0,1.135234]
[1693880695954,0.25741666,25762.0,25760.0,1.138234]
[1693880698087,0.25741666,25762.0,25760.0,1.133234]
[1693880705942,0.25741666,25762.0,25760.0,1.049134]
[1693880709176,0.24741666,25762.0,25760.0,1.049134]
[1693880715277,0.08291666,25762.0,25760.0,1.049134]
[1693880717269,0.08291666,25762.0,25761.0,0.0841]
[1693880717468,0.08291666,25762.0,25761.0,1.132195]
[1693880718301,0.29637499,25763.0,25761.0,1.132195]
[1693880719075,0.3892696,25763.0,25761.0,1.132195]
[1693880721013,0.3892696,25763.0,25761.0,1.05561507]
[1693880722195,0.3892696,25763.0,25761.0,1.048095]
[1693880723757,0.24989461,25763.0,25761.0,1.048095]
[1693880725909,0.24989461,25763.0,25761.0,1.132195]
[1693880727552,0.24989461,25763.0,25761.0,1.135195]
[1693880728476,0.24989461,25763.0,25761.0,1.138195]
[1693880733197,0.24989461,25763.0,25761.0,1.054095]
[1693880737364,0.49593928,25763.0,25761.0,1.054095]
[1693880738886,0.49593928,25763.0,25761.0,1.05399277]
[1693880740758,0.49593928,25763.0,25761.0,1.05399277]
[1693880749371,0.24989461,25763.0,25761.0,1.05399277]
[1693880762698,0.3892696,25763.0,25761.0,1.05399277]
[1693880765389,0.66996318,25763.0,25761.0,1.05399277]
[1693880770205,0.43769358,25763.0,25761.0,1.05399277]
[1693880770663,0.66989479,25763.0,25761.0,1.05399277]
[1693880771759,0.34776855,25762.0,25761.0,0.006]
[1693880772003,0.34776855,25762.0,25761.0,0.355365]
[1693880772243,0.50816855,25762.0,25761.0,0.355365]
[1693880773677,0.50816855,25762.0,25761.0,0.349365]
[1693880773914,0.50816855,25762.0,25761.0,0.352365]
[1693880774096,0.50816855,25762.0,25761.0,0.355365]
[1693880777830,0.50816855,25762.0,25761.0,0.70473]
[1693880778813,0.50816855,25762.0,25761.0,0.355365]
[1693880779996,0.50816855,25762.0,25761.0,0.70473]
[1693880783822,0.50816855,25762.0,25761.0,0.355365]
[1693880792452,0.50816855,25762.0,25761.0,0.70473]
[1693880806409,0.50816855,25762.0,25761.0,0.69473]
[1693880814183,0.50816855,25762.0,25761.0,0.68973]
[1693880816296,0.64748928,25762.0,25761.0,0.68973]
[1693880816781,0.50816855,25762.0,25761.0,0.68973]
[1693880817509,0.64748928,25762.0,25761.0,0.68973]
[1693880818197,0.50816855,25762.0,25761.0,0.68973]
[1693880819296,0.50816855,25762.0,25761.0,1.039095]
[1693880819793,0.41528807,25762.0,25761.0,1.039095]
[1693880820663,0.50815533,25762.0,25761.0,1.039095]
[1693880824650,0.50815533,25762.0,25761.0,1.05125883]
[1693880824882,0.50815351,25762.0,25761.0,1.05125883]
[1693880846017,0.64745167,25762.0,25761.0,1.05125883]
[1693880846772,0.3925636,25762.0,25761.0,1.05125883]
[1693880850482,0.25326544,25762.0,25761.0,1.05125883]
[1693880852577,0.25326544,25762.0,25761.0,1.039095]
[1693880857321,0.4971672,25762.0,25761.0,0.68973]
[1693880857572,0.63646536,25762.0,25761.0,0.68973]
[1693880858528,0.54359992,25762.0,25761.0,0.68973]
[1693880863086,0.54359992,25762.0,25761.0,0.006]
[1693880863087,0.93024519,25762.0,25761.0,0.006]
[1693880863502,0.99936519,25762.0,25761.0,0.006]
[1693880863703,1.00092519,25762.0,25761.0,0.006]
[1693880863906,1.18659608,25762.0,25761.0,0.006]
[1693880864108,1.18635608,25762.0,25761.0,0.006]
[1693880864323,0.99978519,25762.0,25761.0,0.006]
[1693880864542,0.99588519,25762.0,25761.0,0.006]
[1693880864759,0.99564519,25762.0,25761.0,0.006]
[1693880865010,0.93024519,25762.0,25761.0,0.006]
[1693880866474,0.99720519,25762.0,25761.0,0.006]
[1693880866676,1.00014519,25762.0,25761.0,0.006]
[1693880866964,1.00032519,25762.0,25761.0,0.006]
[1693880867117,1.00020519,25762.0,25761.0,0.006]
[1693880867316,1.00050519,25762.0,25761.0,0.006]
[1693880867490,0.99984519,25762.0,25761.0,0.006]
[1693880867699,1.77624219,25762.0,25761.0,0.006]
[1693880867899,1.77636219,25762.0,25761.0,0.006]
[1693880868119,1.77552219,25762.0,25761.0,0.006]
[1693880868324,1.77534219,25762.0,25761.0,0.006]
[1693880868532,1.77516219,25762.0,25761.0,0.006]
[1693880868783,2.92723624,25762.0,25761.0,0.006]
[1693880868906,2.98464896,25762.0,25761.0,0.006]
[1693880869107,3.75174596,25762.0,25761.0,0.006]
[1693880869394,3.75816596,25762.0,25761.0,0.006]
[1693880869597,3.75786596,25762.0,25761.0,0.003]
[1693880869828,3.75762596,25762.0,25761.0,0.006]
[1693880870036,3.75696596,25762.0,25761.0,0.003]
[1693880870188,3.75708596,25762.0,25761.0,0.001]
[1693880870383,3.75696596,25762.0,25761.0,0.001]
[1693880870593,3.75702596,25762.0,25761.0,0.002]
[1693880870799,3.75984596,25762.0,25761.0,0.002]
[1693880870953,3.76188596,25762.0,25761.0,0.002]
[1693880871167,3.76374596,25762.0,25761.0,0.002]
[1693880871368,3.76242596,25762.0,25761.0,0.002]
[1693880871625,4.00040471,25762.0,25761.0,0.002]
[1693880871840,3.99260471,25762.0,25761.0,0.002]
[1693880872085,3.99236471,25762.0,25761.0,0.002]
[1693880872288,4.17781155,25762.0,25761.0,0.002]
[1693880872485,3.75426596,25762.0,25761.0,0.002]
[1693880872694,3.94079282,25762.0,25761.0,0.002]
[1693880872902,3.94091282,25762.0,25761.0,0.002]
[1693880873054,3.94415282,25762.0,25761.0,0.002]